[Event "European Womens-ch 2025"]
[Site "Rhodes"]
[Date "2025.04.10"]
[Round "10.22"]
[White "Wikar, Martyna"]
[Black "Roebers, Eline"]
[Result "0-1"]
[Annotator "RC"]
[ECO "B22"]
[WhiteElo "2239"]
[BlackElo "2367"]
[PlyCount "80"]
[EventDate "2025.03.29"]
[EventType "swiss"]
[EventCountry "GRE"]
[SourceTitle "playchess.com"]
[Source "ChessBase"]
[SourceQuality "1"]
[TimeControl "40/5400+30:1800+30"]

1. e4 {[%emt 0:00:03]} c5 {[%emt 0:05:03]} 2. c3 {[%emt 0:00:03]} Qa5 {[%emt 0:02:58]} 3. Nf3 {[%emt 0:14:48]} g6 {[%emt 0:03:50]} 4. Bc4 {[%emt 0:07:11]} Bg7 {[%emt 0:02:04]} 5. O-O {[%emt 0:01:11]} Nc6 {[%emt 0:00:58]} 6. d3 {[%emt 0:14:16]} d6 {[%emt 0:03:34]} 7. a4 {[%emt 0:01:46]} e6 {[%emt 0:01:34]} 8. Na3 {[%emt 0:02:40]} Nge7 {[%emt 0:00:37]} 9. Bf4 {[%emt 0:08:25]} Qd8 {[%emt 0:02:21]} 10. Qc1 {[%emt 0:04:05]} h6 {[%emt 0:03:00]} 11. h4 {[%emt 0:04:29]} e5 {[%emt 0:04:29]} 12. Bd2 {[%emt 0:00:44]} f5 {[%emt 0:01:26]} 13. b4 {[%emt 0:08:27]} f4 {[%emt 0:07:20]} 14. d4 {[%emt 0:01:49]} cxb4 {[%emt 0:12:49]} 15. cxb4 {[%emt 0:00:19]} g5 {[%emt 0:00:26]} 16. dxe5 {[%emt 0:08:25]} g4 {[%emt 0:04:39]} 17. exd6 {[%emt 0:02:32]} Ng6 {[%emt 0:00:13]} 18. Bc3 {[%emt 0:07:04]} gxf3 {[%emt 0:03:52]} 19. Bxg7 {[%emt 0:00:10]} Qxh4 {[%emt 0:03:16]} 20. Qc3 {[%emt 0:01:05]} fxg2 {[%emt 0:01:30]} 21. f3 {[%emt 0:04:39]} gxf1=Q+ {[%emt 0:00:58]} 22. Kxf1 {[%emt 0:00:21]} Bh3+ {[%emt 0:17:25]} 23. Ke2 {[%emt 0:00:03]} O-O-O {[%emt 0:01:58]} 24. b5 {[%emt 0:01:13]} Rhe8 {[%emt 0:04:32]} 25. bxc6 {[%emt 0:04:23]} Rxd6 {[%emt 0:00:04]} 26. cxb7+ {[%emt 0:01:21]} Kb8 {[%emt 0:00:08]} 27. Rg1 {[%emt 0:00:59]} Qh5 {[%emt 0:04:05]} 28. Bd3 {[%emt 0:01:13]} Nh4 {[%emt 0:00:27]} 29. Nb5 {[%emt 0:00:36]} Qxf3+ {[%emt 0:00:19]} 30. Kd2 {[%emt 0:00:19]} Qf2+ {[%emt 0:02:43]} 31. Kc1 {[%emt 0:00:23]} Qxg1+ {[%emt 0:00:43]} 32. Kb2 {[%emt 0:00:25]} Qf2+ {[%emt 0:01:24]} 33. Ka1 {[%emt 0:00:32]} Rd7 {[%emt 0:02:10]} 34. Bd4 {[%emt 0:00:39]} Qg3 {[%emt 0:00:37]} 35. Nxa7 {[%emt 0:00:42]} Rc7 {[%emt 0:01:39]} 36. Qa5 {[%emt 0:00:37]} Qxd3 {[%emt 0:00:55]} 37. Nc6+ {[%emt 0:00:19]} Kxb7 {[%emt 0:00:04]} 38. Qb6+ {[%emt 0:00:39]} Kc8 {[%emt 0:00:09]} 39. a5 {[%emt 0:00:33]} Qxe4 {[%emt 0:00:55]} 40. Na7+ {[%emt 0:00:00]} Kd7 {[%emt 0:00:00]} 0-1

[Event "European Womens-ch 2025"]
[Site "Rhodes"]
[Date "2025.04.10"]
[Round "10.23"]
[White "Guichard, Pauline"]
[Black "Gevorgyan, Maria"]
[Result "1-0"]
[Annotator "ChessBase"]
[ECO "E49"]
[WhiteElo "2355"]
[BlackElo "2234"]
[PlyCount "79"]
[EventDate "2025.03.29"]
[EventType "swiss"]
[EventCountry "GRE"]
[SourceTitle "playchess.com"]
[Source "ChessBase"]
[SourceQuality "1"]
[TimeControl "40/5400+30:1800+30"]

1. d4 {[%emt 0:00:03]} Nf6 {[%emt 0:00:07]} 2. c4 {[%emt 0:00:10]} e6 {[%emt 0:00:10]} 3. Nc3 {[%emt 0:00:10]} Bb4 {[%emt 0:00:09]} 4. a3 {[%emt 0:00:18]} Bxc3+ {[%emt 0:00:14]} 5. bxc3 {[%emt 0:00:05]} O-O {[%emt 0:01:09]} 6. f3 {[%emt 0:00:32]} d5 {[%emt 0:00:30]} 7. cxd5 {[%emt 0:00:39]} exd5 {[%emt 0:00:32]} 8. e3 {[%emt 0:00:18]} c5 {[%emt 0:04:56]} 9. Bd3 {[%emt 0:00:46]} Nh5 {[%emt 0:06:10]} 10. Ne2 {[%emt 0:05:21]} Qh4+ {[%emt 0:00:52]} 11. g3 {[%emt 0:01:10]} Qh3 {[%emt 0:00:11]} 12. Kf2 {[%emt 0:02:48]} Nc6 {[%emt 0:05:15]} 13. g4 {[%emt 0:18:16]} Nf6 {[%emt 0:01:32]} 14. Nf4 {[%emt 0:01:26]} Qh4+ {[%emt 0:00:24]} 15. Kg2 {[%emt 0:00:59]} Re8 {[%emt 0:07:14]} 16. Qe1 {[%emt 0:07:46]} Qxe1 {[%emt 0:00:27]} 17. Rxe1 {[%emt 0:00:04]} cxd4 {[%emt 0:09:26]} 18. g5 {[%emt 0:15:07]} Nd7 {[%emt 0:00:27]} 19. cxd4 {[%emt 0:06:36]} Nxd4 {[%emt 0:03:18]} 20. Bb2 {[%emt 0:07:47]} Ne6 {[%emt 0:12:58]} 21. Nxd5 {[%emt 0:00:07]} Ndc5 {[%emt 0:00:43]} 22. Be2 {[%emt 0:06:02]} b6 {[%emt 0:02:41]} 23. Rad1 {[%emt 0:05:27]} Bb7 {[%emt 0:00:23]} 24. Bb5 {[%emt 0:07:14]} Red8 {[%emt 0:04:12]} 25. Ne7+ {[%emt 0:00:08]} Kf8 {[%emt 0:00:17]} 26. Nf5 {[%emt 0:00:05]} Nxg5 {[%emt 0:04:40]} 27. Bxg7+ {[%emt 0:06:20]} Kg8 {[%emt 0:00:09]} 28. e4 {[%emt 0:01:40]} Rxd1 {[%emt 0:11:50]} 29. Rxd1 {[%emt 0:00:07]} Ngxe4 {[%emt 0:01:55]} 30. Bh6 {[%emt 0:05:04]} Nf6 {[%emt 0:03:58]} 31. Rg1 {[%emt 0:01:18]} Nh5 {[%emt 0:01:26]} 32. Kf2+ {[%emt 0:01:20]} Kh8 {[%emt 0:00:06]} 33. Rg5 {[%emt 0:00:06]} Ne6 {[%emt 0:01:03]} 34. Rxh5 {[%emt 0:00:17]} Rd8 {[%emt 0:00:22]} 35. Bc4 {[%emt 0:01:01]} Bd5 {[%emt 0:00:38]} 36. Be2 {[%emt 0:00:43]} Bb7 {[%emt 0:01:41]} 37. Bc1 {[%emt 0:00:36]} Kg8 {[%emt 0:00:40]} 38. Rh4 {[%emt 0:00:28]} Rd7 {[%emt 0:01:31]} 39. Rg4+ {[%emt 0:00:21]} Kf8 {[%emt 0:00:05]} 40. Bh6+ {[%emt 0:00:00]} 1-0

[Event "European Womens-ch 2025"]
[Site "Rhodes"]
[Date "2025.04.10"]
[Round "10.24"]
[White "Gaponenko, Inna"]
[Black "Calzetta Ruiz, Monica"]
[Result "0-1"]
[Annotator "ChessBase"]
[ECO "B34"]
[WhiteElo "2349"]
[BlackElo "2230"]
[PlyCount "80"]
[EventDate "2025.03.29"]
[EventType "swiss"]
[EventCountry "GRE"]
[SourceTitle "playchess.com"]
[Source "ChessBase"]
[SourceQuality "1"]
[TimeControl "40/5400+30:1800+30"]

1. e4 {[%emt 0:00:03]} c5 {[%emt 0:00:12]} 2. Nf3 {[%emt 0:00:06]} Nc6 {[%emt 0:00:06]} 3. d4 {[%emt 0:00:07]} cxd4 {[%emt 0:00:05]} 4. Nxd4 {[%emt 0:00:03]} g6 {[%emt 0:00:13]} 5. Nc3 {[%emt 0:00:09]} Bg7 {[%emt 0:00:21]} 6. Be3 {[%emt 0:00:05]} Nf6 {[%emt 0:00:09]} 7. Nxc6 {[%emt 0:00:10]} bxc6 {[%emt 0:00:50]} 8. e5 {[%emt 0:00:06]} Ng8 {[%emt 0:00:20]} 9. Bd4 {[%emt 0:00:24]} c5 {[%emt 0:06:59]} 10. Bxc5 {[%emt 0:00:23]} Bxe5 {[%emt 0:00:08]} 11. Qd5 {[%emt 1:01:58]} Bxc3+ {[%emt 0:02:32]} 12. bxc3 {[%emt 0:03:16]} Qc7 {[%emt 0:01:17]} 13. Qxa8 {[%emt 0:03:29]} Qxc5 {[%emt 0:00:06]} 14. Ba6 {[%emt 0:00:54]} Qxc3+ {[%emt 0:00:09]} 15. Ke2 {[%emt 0:00:04]} Qe5+ {[%emt 0:00:15]} 16. Kd1 {[%emt 0:19:15]} Qxa1+ {[%emt 0:00:46]} 17. Kd2 {[%emt 0:00:24]} Qd4+ {[%emt 0:00:11]} 18. Ke2 {[%emt 0:00:07]} Qe5+ {[%emt 0:00:49]} 19. Kf1 {[%emt 0:00:01]} Kf8 {[%emt 0:10:30]} 20. Qxc8+ {[%emt 0:00:04]} Kg7 {[%emt 0:00:07]} 21. g3 {[%emt 0:00:06]} Nf6 {[%emt 0:00:18]} 22. Qc4 {[%emt 0:00:04]} d5 {[%emt 0:00:19]} 23. Qe2 {[%emt 0:01:38]} Qd6 {[%emt 0:42:57]} 24. Kg2 {[%emt 0:00:43]} Rb8 {[%emt 0:00:05]} 25. Re1 {[%emt 0:03:23]} Rb2 {[%emt 0:01:34]} 26. a4 {[%emt 0:01:38]} Ra2 {[%emt 0:04:22]} 27. Bb5 {[%emt 0:01:04]} e6 {[%emt 0:00:25]} 28. Qe3 {[%emt 0:03:57]} a6 {[%emt 0:00:28]} 29. Bd3 {[%emt 0:00:03]} Rxa4 {[%emt 0:00:23]} 30. Qa7 {[%emt 0:01:00]} Ne4 {[%emt 0:09:31]} 31. Bxe4 {[%emt 0:00:05]} dxe4 {[%emt 0:00:07]} 32. Rb1 {[%emt 0:01:03]} Qd5 {[%emt 0:09:20]} 33. Qe3 {[%emt 0:00:27]} Rc4 {[%emt 0:00:28]} 34. Rb2 {[%emt 0:00:31]} a5 {[%emt 0:00:28]} 35. g4 {[%emt 0:00:25]} a4 {[%emt 0:02:11]} 36. g5 {[%emt 0:00:16]} Qe5 {[%emt 0:01:28]} 37. Rb7 {[%emt 0:00:52]} Rxc2 {[%emt 0:03:21]} 38. Ra7 {[%emt 0:00:25]} Rc3 {[%emt 0:00:50]} 39. Qd2 {[%emt 0:00:05]} Rd3 {[%emt 0:00:08]} 40. Qc1 {[%emt 0:00:00]} e3 {[%emt 0:00:00]} 0-1

[Event "European Womens-ch 2025"]
[Site "Rhodes"]
[Date "2025.04.10"]
[Round "10.25"]
[White "Sliwicka, Alicja"]
[Black "Mgeladze, Kesaria"]
[Result "1-0"]
[Annotator "ChessBase"]
[ECO "B66"]
[WhiteElo "2342"]
[BlackElo "2200"]
[PlyCount "137"]
[EventDate "2025.03.29"]
[EventType "swiss"]
[EventCountry "GRE"]
[SourceTitle "playchess.com"]
[Source "ChessBase"]
[SourceQuality "1"]
[TimeControl "40/5400+30:1800+30"]

1. e4 {[%emt 0:01:28]} c5 {[%emt 0:00:05]} 2. Nf3 {[%emt 0:00:12]} Nc6 {[%emt 0:00:06]} 3. d4 {[%emt 0:00:04]} cxd4 {[%emt 0:00:05]} 4. Nxd4 {[%emt 0:00:05]} Nf6 {[%emt 0:00:07]} 5. Nc3 {[%emt 0:00:07]} d6 {[%emt 0:00:04]} 6. Bg5 {[%emt 0:00:08]} e6 {[%emt 0:00:05]} 7. Qd2 {[%emt 0:00:05]} a6 {[%emt 0:00:07]} 8. Nxc6 {[%emt 0:00:05]} bxc6 {[%emt 0:00:06]} 9. O-O-O {[%emt 0:00:08]} Be7 {[%emt 0:00:09]} 10. Bxf6 {[%emt 0:00:07]} gxf6 {[%emt 0:00:06]} 11. Bc4 {[%emt 0:00:06]} Bb7 {[%emt 0:00:07]} 12. Bb3 {[%emt 0:00:07]} Qa5 {[%emt 0:00:20]} 13. Kb1 {[%emt 0:00:10]} O-O-O {[%emt 0:00:29]} 14. Qe2 {[%emt 0:00:06]} Kb8 {[%emt 0:05:45]} 15. Rd3 {[%emt 0:02:50]} h5 {[%emt 0:01:31]} 16. Rhd1 {[%emt 0:01:15]} h4 {[%emt 0:01:46]} 17. a3 {[%emt 0:04:20]} Qe5 {[%emt 0:29:19]} 18. g3 {[%emt 0:00:33]} hxg3 {[%emt 0:00:15]} 19. hxg3 {[%emt 0:00:10]} d5 {[%emt 0:04:47]} 20. f4 {[%emt 0:07:21]} Qc7 {[%emt 0:06:17]} 21. Na4 {[%emt 0:25:55]} dxe4 {[%emt 0:31:11]} 22. Qxe4 {[%emt 0:02:39]} Rxd3 {[%emt 0:00:22]} 23. Rxd3 {[%emt 0:00:42]} c5 {[%emt 0:00:14]} 24. Qc4 {[%emt 0:00:38]} Bd5 {[%emt 0:03:12]} 25. Rxd5 {[%emt 0:04:44]} exd5 {[%emt 0:00:13]} 26. Qxd5 {[%emt 0:00:06]} Rc8 {[%emt 0:06:36]} 27. Qc4 {[%emt 0:03:02]} Qd6 {[%emt 0:06:15]} 28. Nc3 {[%emt 0:00:07]} Rf8 {[%emt 0:01:24]} 29. Qe4 {[%emt 0:04:07]} Bd8 {[%emt 0:02:03]} 30. Nd5 {[%emt 0:02:40]} Qe6 {[%emt 0:00:54]} 31. Qf3 {[%emt 0:01:42]} Rg8 {[%emt 0:00:54]} 32. Ka2 {[%emt 0:00:15]} f5 {[%emt 0:00:39]} 33. Qd3 {[%emt 0:03:07]} Qc6 {[%emt 0:00:45]} 34. Bc4 {[%emt 0:00:24]} Ka7 {[%emt 0:00:18]} 35. Qxf5 {[%emt 0:02:20]} Qb7 {[%emt 0:00:06]} 36. g4 {[%emt 0:00:46]} Bh4 {[%emt 0:00:35]} 37. Nc3 {[%emt 0:03:16]} Be7 {[%emt 0:00:59]} 38. Bd5 {[%emt 0:02:34]} Qc7 {[%emt 0:00:19]} 39. Bf3 {[%emt 0:02:59]} Rb8 {[%emt 0:00:38]} 40. Qxf7 {[%emt 0:00:00]} Bd6 {[%emt 0:00:00]} 41. Qxc7+ {[%emt 0:07:14]} Bxc7 {[%emt 0:00:41]} 42. f5 {[%emt 0:00:36]} Be5 {[%emt 0:07:15]} 43. g5 {[%emt 0:01:02]} Rf8 {[%emt 0:00:17]} 44. Be4 {[%emt 0:00:30]} Rg8 {[%emt 0:00:12]} 45. g6 {[%emt 0:00:43]} Rb8 {[%emt 0:00:07]} 46. Bd5 {[%emt 0:01:32]} a5 {[%emt 0:00:38]} 47. Na4 {[%emt 0:00:58]} Rc8 {[%emt 0:00:47]} 48. Kb3 {[%emt 0:00:51]} Kb8 {[%emt 0:00:37]} 49. Be6 {[%emt 0:01:06]} Rc6 {[%emt 0:00:31]} 50. Bd5 {[%emt 0:02:39]} Rc7 {[%emt 0:01:34]} 51. Nb6 {[%emt 0:00:41]} Re7 {[%emt 0:00:31]} 52. Nc4 {[%emt 0:00:49]} Bf6 {[%emt 0:00:09]} 53. Nxa5 {[%emt 0:00:36]} Kc7 {[%emt 0:00:16]} 54. Be6 {[%emt 0:01:21]} Kd6 {[%emt 0:01:22]} 55. Nc4+ {[%emt 0:00:04]} Kc6 {[%emt 0:00:11]} 56. c3 {[%emt 0:00:08]} Re8 {[%emt 0:00:27]} 57. Ne3 {[%emt 0:01:29]} Kd6 {[%emt 0:00:42]} 58. a4 {[%emt 0:00:35]} Rb8+ {[%emt 0:00:55]} 59. Kc2 {[%emt 0:00:06]} Ra8 {[%emt 0:00:07]} 60. a5 {[%emt 0:00:21]} Bg7 {[%emt 0:00:23]} 61. Nc4+ {[%emt 0:00:50]} Ke7 {[%emt 0:00:13]} 62. b4 {[%emt 0:01:27]} cxb4 {[%emt 0:00:12]} 63. cxb4 {[%emt 0:00:04]} Kf6 {[%emt 0:00:40]} 64. b5 {[%emt 0:00:09]} Bf8 {[%emt 0:00:07]} 65. b6 {[%emt 0:00:21]} Bb4 {[%emt 0:00:19]} 66. b7 {[%emt 0:00:34]} Rb8 {[%emt 0:00:03]} 67. a6 {[%emt 0:00:34]} Bc5 {[%emt 0:00:02]} 68. Bc8 {[%emt 0:00:20]} Bd4 {[%emt 0:00:23]} 69. Na5 {[%emt 0:00:18]} 1-0

[Event "European Womens-ch 2025"]
[Site "Rhodes"]
[Date "2025.04.10"]
[Round "10.26"]
[White "Lehaci, Miruna-Daria"]
[Black "Antolak, Julia"]
[Result "0-1"]
[Annotator "ChessBase"]
[ECO "B55"]
[WhiteElo "2212"]
[BlackElo "2314"]
[PlyCount "120"]
[EventDate "2025.03.29"]
[EventType "swiss"]
[EventCountry "GRE"]
[SourceTitle "playchess.com"]
[Source "ChessBase"]
[SourceQuality "1"]
[TimeControl "40/5400+30:1800+30"]

1. e4 {[%emt 0:00:03]} c5 {[%emt 0:00:21]} 2. Nf3 {[%emt 0:00:10]} d6 {[%emt 0:00:35]} 3. d4 {[%emt 0:01:00]} cxd4 {[%emt 0:00:07]} 4. Nxd4 {[%emt 0:00:05]} Nf6 {[%emt 0:00:08]} 5. Bd3 {[%emt 0:00:55]} Nc6 {[%emt 0:02:47]} 6. Nxc6 {[%emt 0:00:14]} bxc6 {[%emt 0:01:17]} 7. O-O {[%emt 0:00:21]} g6 {[%emt 0:04:24]} 8. b3 {[%emt 0:00:34]} Bg7 {[%emt 0:01:00]} 9. Bb2 {[%emt 0:00:08]} O-O {[%emt 0:00:24]} 10. Nc3 {[%emt 0:00:07]} Nd7 {[%emt 0:07:07]} 11. Na4 {[%emt 0:01:39]} Qa5 {[%emt 0:04:03]} 12. Bxg7 {[%emt 0:06:04]} Kxg7 {[%emt 0:00:07]} 13. Re1 {[%emt 0:00:24]} Qg5 {[%emt 0:07:38]} 14. Qc1 {[%emt 0:07:16]} Qxc1 {[%emt 0:05:43]} 15. Raxc1 {[%emt 0:00:07]} Ne5 {[%emt 0:00:22]} 16. Bf1 {[%emt 0:01:49]} g5 {[%emt 0:00:45]} 17. Nb2 {[%emt 0:03:13]} f5 {[%emt 0:05:32]} 18. Nd3 {[%emt 0:06:48]} Ng6 {[%emt 0:04:54]} 19. e5 {[%emt 0:18:50]} Ba6 {[%emt 0:06:48]} 20. exd6 {[%emt 0:05:31]} exd6 {[%emt 0:00:09]} 21. Nc5 {[%emt 0:01:43]} Bc8 {[%emt 0:02:27]} 22. Ne6+ {[%emt 0:00:47]} Bxe6 {[%emt 0:02:56]} 23. Rxe6 {[%emt 0:00:04]} Rf6 {[%emt 0:02:21]} 24. Re2 {[%emt 0:01:51]} f4 {[%emt 0:03:14]} 25. Rd2 {[%emt 0:04:46]} Ne5 {[%emt 0:04:49]} 26. Rcd1 {[%emt 0:03:50]} Rd8 {[%emt 0:01:44]} 27. Rd4 {[%emt 0:01:31]} h5 {[%emt 0:02:10]} 28. Re4 {[%emt 0:05:19]} Re8 {[%emt 0:01:52]} 29. Red4 {[%emt 0:04:59]} Ree6 {[%emt 0:03:56]} 30. Rb4 {[%emt 0:04:32]} h4 {[%emt 0:01:23]} 31. Rb7+ {[%emt 0:08:24]} Rf7 {[%emt 0:00:33]} 32. Rxf7+ {[%emt 0:00:34]} Kxf7 {[%emt 0:01:05]} 33. h3 {[%emt 0:00:50]} Ke7 {[%emt 0:04:15]} 34. c3 {[%emt 0:02:28]} d5 {[%emt 0:01:38]} 35. b4 {[%emt 0:07:28]} Rd6 {[%emt 0:03:42]} 36. a4 {[%emt 0:00:40]} Nd7 {[%emt 0:00:52]} 37. g3 {[%emt 0:02:00]} hxg3 {[%emt 0:04:11]} 38. fxg3 {[%emt 0:00:06]} fxg3 {[%emt 0:00:12]} 39. Rd3 {[%emt 0:00:45]} Nf6 {[%emt 0:04:01]} 40. Rxg3 {[%emt 0:00:00]} Ne4 {[%emt 0:00:00]} 41. Re3 {[%emt 0:02:24]} Kf6 {[%emt 0:03:00]} 42. Kg2 {[%emt 0:02:50]} Ke5 {[%emt 0:01:58]} 43. Bd3 {[%emt 0:01:28]} Rf6 {[%emt 0:04:38]} 44. Re2 {[%emt 0:01:28]} Rf4 {[%emt 0:01:22]} 45. b5 {[%emt 0:02:12]} cxb5 {[%emt 0:03:43]} 46. axb5 {[%emt 0:00:22]} g4 {[%emt 0:00:46]} 47. hxg4 {[%emt 0:06:13]} Rxg4+ {[%emt 0:00:07]} 48. Kf1 {[%emt 0:01:06]} Kf4 {[%emt 0:07:07]} 49. Bxe4 {[%emt 0:06:39]} dxe4 {[%emt 0:00:32]} 50. c4 {[%emt 0:01:47]} e3 {[%emt 0:02:41]} 51. c5 {[%emt 0:02:54]} Rg5 {[%emt 0:03:48]} 52. Rc2 {[%emt 0:04:48]} Kf3 {[%emt 0:03:49]} 53. Rc3 {[%emt 0:00:39]} Rh5 {[%emt 0:03:00]} 54. Kg1 {[%emt 0:00:07]} Ke2 {[%emt 0:01:08]} 55. c6 {[%emt 0:00:46]} Rg5+ {[%emt 0:00:26]} 56. Kh2 {[%emt 0:00:06]} Kf2 {[%emt 0:00:12]} 57. Kh3 {[%emt 0:00:53]} e2 {[%emt 0:00:21]} 58. Rc2 {[%emt 0:01:21]} Kf1 {[%emt 0:01:08]} 59. c7 {[%emt 0:01:13]} e1=Q {[%emt 0:00:39]} 60. c8=N {[%emt 0:00:15]} Qg3# {[%emt 0:00:06]} 0-1

[Event "European Womens-ch 2025"]
[Site "Rhodes"]
[Date "2025.04.10"]
[Round "10.27"]
[White "Kochavi, Dana"]
[Black "Khachatryan, Anna"]
[Result "0-1"]
[Annotator "ChessBase"]
[ECO "B49"]
[WhiteElo "2301"]
[BlackElo "2091"]
[PlyCount "68"]
[EventDate "2025.03.29"]
[EventType "swiss"]
[EventCountry "GRE"]
[SourceTitle "playchess.com"]
[Source "ChessBase"]
[SourceQuality "1"]
[TimeControl "40/5400+30:1800+30"]

1. e4 {[%emt 0:03:24]} c5 {[%emt 0:00:07]} 2. Nf3 {[%emt 0:00:03]} e6 {[%emt 0:00:36]} 3. d4 {[%emt 0:00:04]} cxd4 {[%emt 0:00:04]} 4. Nxd4 {[%emt 0:00:02]} Nc6 {[%emt 0:00:09]} 5. Nc3 {[%emt 0:00:09]} Qc7 {[%emt 0:00:14]} 6. Be2 {[%emt 0:00:05]} Nf6 {[%emt 0:01:39]} 7. Be3 {[%emt 0:00:09]} a6 {[%emt 0:00:17]} 8. O-O {[%emt 0:00:07]} Be7 {[%emt 0:01:08]} 9. f4 {[%emt 0:00:08]} Nxd4 {[%emt 0:02:05]} 10. Bxd4 {[%emt 0:00:27]} d6 {[%emt 0:01:09]} 11. Kh1 {[%emt 0:06:30]} b5 {[%emt 0:06:36]} 12. e5 {[%emt 0:10:22]} dxe5 {[%emt 0:10:49]} 13. fxe5 {[%emt 0:01:27]} Nd7 {[%emt 0:09:09]} 14. Bh5 {[%emt 0:01:21]} g6 {[%emt 0:12:24]} 15. Qf3 {[%emt 0:01:18]} O-O {[%emt 0:00:53]} 16. Qg3 {[%emt 0:29:11]} Bb7 {[%emt 0:02:32]} 17. Bf3 {[%emt 0:01:08]} Bxf3 {[%emt 0:16:29]} 18. Rxf3 {[%emt 0:00:06]} b4 {[%emt 0:02:10]} 19. Ne4 {[%emt 0:00:25]} Qxc2 {[%emt 0:00:51]} 20. Nf6+ {[%emt 0:00:26]} Nxf6 {[%emt 0:14:29]} 21. exf6 {[%emt 0:00:06]} Bc5 {[%emt 0:00:01]} 22. Bxc5 {[%emt 0:12:20]} Qxc5 {[%emt 0:00:04]} 23. Qf4 {[%emt 0:01:09]} Rfd8 {[%emt 0:02:06]} 24. Re1 {[%emt 0:02:15]} Rd4 {[%emt 0:03:32]} 25. Qh6 {[%emt 0:04:06]} Qf8 {[%emt 0:00:04]} 26. Qe3 {[%emt 0:00:06]} Rad8 {[%emt 0:00:14]} 27. Qc1 {[%emt 0:01:22]} h5 {[%emt 0:02:01]} 28. a3 {[%emt 0:00:52]} a5 {[%emt 0:00:41]} 29. h3 {[%emt 0:06:31]} Kh7 {[%emt 0:02:40]} 30. Qc7 {[%emt 0:00:06]} R4d5 {[%emt 0:00:11]} 31. axb4 {[%emt 0:01:29]} R8d7 {[%emt 0:01:00]} 32. Qc6 {[%emt 0:03:46]} Qxb4 {[%emt 0:03:37]} 33. Ree3 {[%emt 0:01:57]} Rd1+ {[%emt 0:01:00]} 34. Kh2 {[%emt 0:00:05]} Qb8+ {[%emt 0:00:57]} 0-1

[Event "European Womens-ch 2025"]
[Site "Rhodes"]
[Date "2025.04.10"]
[Round "10.28"]
[White "Karacsonyi, Kata"]
[Black "Heinemann, Josefine"]
[Result "1-0"]
[Annotator "ChessBase"]
[ECO "B95"]
[WhiteElo "2198"]
[BlackElo "2297"]
[PlyCount "79"]
[EventDate "2025.03.29"]
[EventType "swiss"]
[EventCountry "GRE"]
[SourceTitle "playchess.com"]
[Source "ChessBase"]
[SourceQuality "1"]
[TimeControl "40/5400+30:1800+30"]

1. e4 {[%emt 0:02:08]} c5 {[%emt 0:00:03]} 2. Nf3 {[%emt 0:00:08]} d6 {[%emt 0:00:15]} 3. d4 {[%emt 0:00:17]} cxd4 {[%emt 0:00:06]} 4. Nxd4 {[%emt 0:00:05]} Nf6 {[%emt 0:00:04]} 5. Nc3 {[%emt 0:00:05]} a6 {[%emt 0:00:04]} 6. Bg5 {[%emt 0:00:08]} e6 {[%emt 0:00:38]} 7. Qf3 {[%emt 0:00:08]} Be7 {[%emt 0:01:43]} 8. O-O-O {[%emt 0:00:58]} Qc7 {[%emt 0:05:11]} 9. g4 {[%emt 0:03:12]} Nc6 {[%emt 0:06:12]} 10. Nxc6 {[%emt 0:18:55]} bxc6 {[%emt 0:04:14]} 11. Qg3 {[%emt 0:02:09]} Rb8 {[%emt 0:06:58]} 12. Bc4 {[%emt 0:13:08]} Rb4 {[%emt 0:08:17]} 13. Bb3 {[%emt 0:01:13]} c5 {[%emt 0:10:57]} 14. Ba4+ {[%emt 0:11:22]} Kf8 {[%emt 0:04:06]} 15. Bxf6 {[%emt 0:01:37]} gxf6 {[%emt 0:01:28]} 16. a3 {[%emt 0:02:01]} Rb8 {[%emt 0:02:14]} 17. f4 {[%emt 0:07:59]} h6 {[%emt 0:06:27]} 18. h4 {[%emt 0:01:53]} Qb6 {[%emt 0:04:38]} 19. b3 {[%emt 0:01:02]} c4 {[%emt 0:00:55]} 20. Qg1 {[%emt 0:08:48]} Qxg1 {[%emt 0:08:37]} 21. Rhxg1 {[%emt 0:00:09]} cxb3 {[%emt 0:00:05]} 22. cxb3 {[%emt 0:01:20]} Bb7 {[%emt 0:00:23]} 23. Kb2 {[%emt 0:01:14]} Kg7 {[%emt 0:03:07]} 24. f5 {[%emt 0:02:16]} a5 {[%emt 0:05:34]} 25. Bd7 {[%emt 0:04:19]} Bc8 {[%emt 0:05:28]} 26. Bxc8 {[%emt 0:00:16]} Rhxc8 {[%emt 0:00:03]} 27. Ne2 {[%emt 0:01:12]} Rb5 {[%emt 0:02:19]} 28. Rc1 {[%emt 0:02:54]} Rxc1 {[%emt 0:00:42]} 29. Rxc1 {[%emt 0:00:49]} Re5 {[%emt 0:02:05]} 30. Ng3 {[%emt 0:02:37]} d5 {[%emt 0:01:30]} 31. Rc7 {[%emt 0:00:34]} Kf8 {[%emt 0:02:06]} 32. Rc8+ {[%emt 0:00:52]} Kg7 {[%emt 0:00:03]} 33. Re8 {[%emt 0:00:23]} dxe4 {[%emt 0:02:36]} 34. Rxe7 {[%emt 0:01:23]} e3 {[%emt 0:00:05]} 35. Ne2 {[%emt 0:00:50]} Rd5 {[%emt 0:00:42]} 36. fxe6 {[%emt 0:05:11]} Rd2+ {[%emt 0:01:37]} 37. Kc3 {[%emt 0:00:06]} Rxe2 {[%emt 0:00:17]} 38. Rxf7+ {[%emt 0:00:05]} Kg8 {[%emt 0:01:12]} 39. Rxf6 {[%emt 0:00:07]} Rf2 {[%emt 0:00:03]} 40. e7 {[%emt 0:00:00]} 1-0